[Event "Spring Chess Classic A 2024"]
[Site "Saint Louis"]
[Date "2024.04.17"]
[Round "6.5"]
[White "Bok, Benjamin"]
[Black "Ter-Sahakyan, Samvel"]
[Result "0-1"]
[ECO "D02"]
[WhiteElo "2620"]
[BlackElo "2644"]
[Annotator "TA"]
[PlyCount "80"]
[EventDate "2024.04.11"]
[EventCountry "USA"]
[SourceTitle "playchess.com"]
[Source "ChessBase"]
[SourceQuality "1"]
[TimeControl "7200+30"]

{[%evp 15,80,0,0,-68,-65,-50,-77,-131,-152,-150,-105,-124,-87,-86,-91,-166,-132,-150,-171,-171,-166,-210,-188,-224,-211,-330,-342,-369,-372,-364,-366,-365,-376,-455,-467,-449,-333,-353,-323,-348,-354,-352,-392,-378,-369,-398,-396,-401,-367,-402,-402,-401,-374,-702,-649,-631,-584,-572,-551,-613,-613,-602,-589,-708,-589,-548,-545]} 1. Nf3 {[%emt 0:00:03]} d5 {[%emt 0:00:38]} 2. g3 {[%emt 0:00:05]} Nd7 {[%emt 0:05:39]} 3. d4 {[%emt 0:00:17]} Nb6 {[%emt 0:00:07]} 4. a4 {[%emt 0:28:09]} a5 {[%emt 0:02:07]} 5. Bg2 {[%emt 0:00:28]} Bf5 {[%emt 0:06:21]} 6. Nc3 {[%emt 0:10:04] D02: 1 d4 d5 2 Nf3 sidelines, including 2...Nf6 3 g3 and 2...Nf6 3 Bf4.} h6 {[%emt 0:09:04]} 7. e4 $146 {[%emt 0:45:53]} ({Predecessor:} 7. O-O Nf6 8. b3 e6 9. Bb2 Be7 10. e3 O-O 11. Ne5 Nbd7 12. Nd3 Rc8 13. Rc1 {1-0 Ghimpu,S (2458)-Baranciuc,A (2223) Bucharest Grand Prix rapid 2023 (8)}) 7... dxe4 {[%emt 0:01:52]} 8. Ne5 {[%emt 0:01:28]} Nf6 $1 {[%emt 0:00:30]} 9. O-O {[%emt 0:05:51]} ({White should try} 9. f3 $11) 9... e6 $15 {[%emt 0:03:13]} 10. Qe2 {[%emt 0:03:41]} Qxd4 {[%emt 0:18:41]} 11. Nb5 {[%emt 0:09:28]} (11. Qb5+ $142 c6 12. Nxc6 (12. Be3 $2 Qxe3 13. Nxc6 Qc5 $19) 12... bxc6 13. Qxc6+ Nfd7 (13... Ke7 $2 14. Be3 $18) 14. Nb5) 11... Qxe5 $17 {[%emt 0:27:16]} 12. Bf4 {[%emt 0:00:07]} Qc5 {[%emt 0:00:17]} (12... Qxb2 $2 13. Rab1 (13. Nxc7+ Kd8 $18) (13. Rfb1 Bg4 $18) 13... Bg4 14. Nxc7+ Ke7 15. Qe1 (15. Rxb2 Bxe2 16. Nxa8 Bxf1 $11) 15... Qxc2 16. Nxa8 $18 (16. Rxb6 Rb8 $18)) 13. Nxc7+ {[%emt 0:01:10]} Ke7 {[%emt 0:03:11]} 14. Nxa8 {[%emt 0:02:56]} Nxa8 {[%emt 0:00:31]} 15. Ra3 {[%emt 0:02:25] [#]} (15. Be3 $17 {keeps fighting.} Qc6 16. Qb5) 15... Nd5 $1 $19 {[%emt 0:02:48]} 16. Bxe4 {[%emt 0:01:46]} Bxe4 {[%emt 0:04:32]} (16... Nxf4 17. gxf4 g6 18. Rb3 $15) 17. Qxe4 {[%emt 0:00:06]} f5 {[%emt 0:00:07]} 18. Qe5 {[%emt 0:05:32]} Kf7 {[%emt 0:04:23]} (18... Qxc2 19. Re1 (19. Rc1 Qe4 $11) 19... Qc6 20. Qxf5 $11) 19. Qb8 {[%emt 0:05:26] [#]} Nab6 $1 {[%emt 0:01:43]} 20. Rb3 {[%emt 0:05:02]} (20. Qxb7+ $142 Be7 21. Rb3) 20... Qc6 $19 {[%emt 0:01:12]} (20... Nxa4 21. Rxb7+ (21. Qxb7+ Be7 $17) 21... Kg8 22. Re1 Nxf4 23. Qxf4 $11) 21. Be3 {[%emt 0:00:30]} Rg8 {[%emt 0:04:01]} (21... Qxc2 22. Rxb6 Nxb6 23. Bxb6 $17) 22. Bxb6 {[%emt 0:00:30]} Nxb6 {[%emt 0:00:56]} 23. Qe5 {[%emt 0:00:30]} Bb4 {[%emt 0:04:37]} ({Don't do} 23... Nxa4 24. Qxa5 Be7 (24... Qxc2 $2 25. Qxa4 Be7 26. Qb5 $18) 25. Qb5 $19) 24. c3 {[%emt 0:00:31]} Nd7 {[%emt 0:00:56]} ({Weaker is} 24... Qxa4 25. Qc7+ Kf6 26. Rxb4 axb4 27. Qxb6 $15) 25. Qe3 {[%emt 0:00:30]} Be7 {[%emt 0:03:16]} ({Not} 25... Qxa4 26. cxb4 axb4 27. Rc1 $16) 26. Rb5 {[%emt 0:00:31]} b6 {[%emt 0:00:01]} 27. b4 {[%emt 0:00:29]} Ra8 {[%emt 0:00:07]} 28. Re1 {[%emt 0:00:30]} axb4 {[%emt 0:05:33]} 29. cxb4 {[%emt 0:00:09]} Rxa4 {[%emt 0:00:04]} 30. Qb3 {[%emt 0:00:51]} Qxb5 {[%emt 0:01:58]} 31. Qxe6+ {[%emt 0:00:05]} Kf8 {[%emt 0:00:03]} 32. Qxe7+ {[%emt 0:00:12]} Kg8 {[%emt 0:00:01]} 33. Qe8+ {[%emt 0:01:06]} Kh7 {[%emt 0:00:01]} 34. h4 $2 {[%emt 0:00:38]} (34. Rd1 Ra7 35. Qf7) 34... Qd5 {[%emt 0:01:35]} 35. h5 {[%emt 0:00:30]} Ra8 {[%emt 0:00:53]} 36. Qg6+ {[%emt 0:00:13]} Kg8 {[%emt 0:00:15]} 37. Re8+ {[%emt 0:00:40]} Rxe8 {[%emt 0:00:06]} 38. Qxe8+ {[%emt 0:00:01]} Nf8 {[%emt 0:00:08]} 39. b5 {[%emt 0:00:21]} Qe6 {[%emt 0:00:13]} 40. Qd8 {[%emt 0:00:33]} Kf7 {[%emt 0:00:07]} 0-1

[Event "Spring Chess Classic A 2024"]
[Site "Saint Louis"]
[Date "2024.04.18"]
[Round "7.1"]
[White "Ter-Sahakyan, Samvel"]
[Black "Mendonca, Leon Luke"]
[Result "1/2-1/2"]
[ECO "B80"]
[WhiteElo "2644"]
[BlackElo "2626"]
[Annotator "TA"]
[PlyCount "74"]
[EventDate "2024.04.11"]
[EventCountry "USA"]
[SourceTitle "playchess.com"]
[Source "ChessBase"]
[SourceQuality "1"]
[TimeControl "7200+30"]

{[%evp 11,74,19,19,12,6,28,28,29,22,28,21,10,33,7,10,0,0,0,0,0,0,0,0,0,0,0,0,0,0,0,0,0,0,0,0,0,0,0,0,0,0,0,0,0,0,0,0,0,0,0,0,0,0,0,0,0,0,0,0,0,0,0,0,0,93]} 1. e4 {[%emt 0:00:07]} c5 {[%emt 0:01:32]} 2. Nf3 {[%emt 0:00:15]} d6 {[%emt 0:00:10]} 3. d4 {[%emt 0:01:55]} cxd4 {[%emt 0:00:24]} 4. Nxd4 {[%emt 0:00:05]} Nf6 {[%emt 0:00:06]} 5. Nc3 {[%emt 0:02:37]} a6 {[%emt 0:00:09]} 6. Be3 {[%emt 0:03:58]} e6 {[%emt 0:01:55]} 7. a3 {[%emt 0:06:29]} Be7 {[%emt 0:02:20]} 8. g4 {[%emt 0:09:36]} d5 {[%emt 0:01:33]} 9. exd5 {[%emt 0:03:15] White has an edge.} Nxd5 {[%emt 0:00:10]} 10. Nxd5 {[%emt 0:00:18]} Qxd5 {[%emt 0:00:07]} 11. Rg1 {[%emt 0:00:30]} Qa5+ {[%emt 0:03:26]} 12. c3 {[%emt 0:05:22]} Bd7 {[%emt 0:07:39] The position is equal.} 13. Qb3 {[%emt 0:27:37]} Qc7 {[%emt 0:08:35]} 14. Bg2 {[%emt 0:06:10]} Nc6 $1 {[%emt 0:00:50]} 15. Nxc6 $1 {[%emt 0:00:25]} Bxc6 {[%emt 0:00:08]} 16. Qc4 {[%emt 0:01:30]} Rc8 {[%emt 0:06:23]} 17. Bxc6+ {[%emt 0:03:18]} Qxc6 {[%emt 0:00:13]} 18. Qxc6+ {[%emt 0:00:04]} Rxc6 {[%emt 0:00:07]} 19. Ke2 {[%emt 0:00:19]} Bc5 {[%emt 0:12:03]} 20. Rad1 {[%emt 0:01:08]} Ke7 {[%emt 0:02:04]} 21. Rd3 {[%emt 0:03:24]} Rd8 {[%emt 0:11:48]} 22. Rxd8 {[%emt 0:02:42]} Kxd8 $11 {[%emt 0:00:12][%mdl 4096] Endgame. KRB-KRB} 23. Bd2 {[%emt 0:00:05]} Ke7 {[%emt 0:08:34]} 24. g5 {[%emt 0:05:39]} f5 {[%emt 0:15:10]} 25. gxf6+ {[%emt 0:02:28]} Kxf6 {[%emt 0:00:06]} 26. Rg4 {[%emt 0:01:47]} Bd6 {[%emt 0:07:25]} 27. h3 {[%emt 0:06:42]} h5 {[%emt 0:03:18]} 28. Rd4 {[%emt 0:05:58]} g5 {[%emt 0:11:05]} 29. Be3 {[%emt 0:02:37]} Kf5 {[%emt 0:04:08]} 30. f3 {[%emt 0:03:52]} b5 {[%emt 0:03:07]} 31. Rd1 {[%emt 0:03:13]} a5 {[%emt 0:02:39]} 32. Rd4 {[%emt 0:00:33]} a4 {[%emt 0:02:19]} 33. Rd1 {[%emt 0:00:50]} Ra6 {[%emt 0:01:03]} 34. Rd3 {[%emt 0:01:07]} Rc6 {[%emt 0:00:10]} 35. Rd1 {[%emt 0:00:05]} Ra6 {[%emt 0:05:09]} 36. Rd3 {[%emt 0:00:06]} Rc6 {[%emt 0:00:21]} 37. Rd1 {[%emt 0:00:11]} Ke5 {[%emt 0:00:04] Weighted Error Value: White=0.01 (flawless) /Black=0.02 (flawless) .  Mistake:       	---       	Black=1      Inaccurate:     	White=1     	---        OK:         	White=17    	Black=11     Strong:       	White=1     	Black=1} (37... Bc5 $11) 1/2-1/2

[Event "Spring Chess Classic A 2024"]
[Site "Saint Louis"]
[Date "2024.04.17"]
[Round "7.2"]
[White "Yoo, Christopher Woojin"]
[Black "Bok, Benjamin"]
[Result "1/2-1/2"]
[ECO "C65"]
[WhiteElo "2583"]
[BlackElo "2620"]
[Annotator "TA"]
[PlyCount "99"]
[EventDate "2024.04.11"]
[EventCountry "USA"]
[SourceTitle "playchess.com"]
[Source "ChessBase"]
[SourceQuality "1"]
[TimeControl "7200+30"]

{[%evp 17,99,11,11,4,0,0,3,5,4,3,0,0,0,-32,-24,-27,-13,-16,-16,-10,4,0,0,0,0,0,0,0,0,-2,0,-6,0,-3,0,0,0,0,0,0,0,0,0,0,0,0,0,0,4,0,2,0,0,0,0,0,0,0,0,0,0,0,0,-3,-3,-3,-3,-8,-2,-11,-11,-18,-7,-18,-18,-18,-18,-18,0,-18,0,-18,0,-18]} 1. e4 {[%emt 0:00:09]} e5 {[%emt 0:00:03]} 2. Nf3 {[%emt 0:00:07]} Nc6 {[%emt 0:00:05]} 3. Bb5 {[%emt 0:00:07]} Nf6 {[%emt 0:00:03]} 4. d3 {[%emt 0:00:11]} Bc5 {[%emt 0:00:05]} 5. Bg5 {[%emt 0:00:05]} h6 {[%emt 0:03:46]} 6. Bh4 {[%emt 0:00:05] C65: Ruy Lopez: Berlin Defence (3...Nf6), unusual lines and 4 0-0 Bc5.} Be7 {[%emt 0:00:29]} 7. Nc3 {[%emt 0:01:45]} d6 {[%emt 0:25:02]} 8. d4 {[%emt 0:05:04]} Bd7 {[%emt 0:01:15]} 9. O-O {[%emt 0:08:46]} O-O {[%emt 0:20:26]} 10. Bxc6 {[%emt 0:06:18]} Bxc6 {[%emt 0:00:52]} 11. dxe5 {[%emt 0:00:28]} dxe5 $146 {[%emt 0:11:37]} ({Predecessor:} 11... Nxe4 12. Bxe7 Qxe7 13. Nd5 Qd7 14. Re1 Nc5 15. exd6 cxd6 16. Ne7+ Kh8 17. Nxc6 Qxc6 18. c3 Rad8 {1-0 Thole,M-Jensen,C Olympiad-27 Dubai 1986 (6)}) 12. Nxe5 {[%emt 0:02:38]} Bxe4 {[%emt 0:01:09]} 13. Qe2 {[%emt 0:09:24]} (13. Nxe4 {simplifies} Nxe4 14. Re1 Bxh4 15. Rxe4 Qxd1+ 16. Rxd1 Rfe8 17. g3) 13... Qd4 {[%emt 0:11:30]} 14. Ng4 {[%emt 0:11:19]} (14. Rfe1 {simplifies} Qxe5 15. Nxe4 Nxe4 16. Bxe7 Qxe7 17. Qxe4 Qxe4 18. Rxe4 Rfd8 19. Re7) 14... Bc6 $1 {[%emt 0:00:44]} 15. Qxe7 {[%emt 0:09:46]} (15. Rad1 $5 Qf4 16. h3 Nxg4 17. Bg3 $11) 15... Qxg4 {[%emt 0:00:39]} 16. Bg3 {[%emt 0:00:03]} Rac8 {[%emt 0:01:09]} 17. f3 {[%emt 0:03:10]} Qf5 {[%emt 0:00:48]} 18. Qe2 {[%emt 0:00:21]} Nd5 {[%emt 0:10:50]} 19. Nxd5 {[%emt 0:01:09]} Bxd5 {[%emt 0:00:16]} 20. Qe5 {[%emt 0:01:38]} Qxe5 {[%emt 0:01:00]} 21. Bxe5 {[%emt 0:00:05]} Rfe8 {[%emt 0:00:24]} 22. Rfe1 {[%emt 0:00:10]} f6 {[%emt 0:00:37]} 23. Bc3 {[%emt 0:00:10]} Kf7 {[%emt 0:00:25]} 24. a3 {[%emt 0:00:20]} Rxe1+ {[%emt 0:00:18]} 25. Rxe1 {[%emt 0:00:05]} Re8 {[%emt 0:00:04]} 26. Rxe8 {[%emt 0:00:09]} Kxe8 {[%emt 0:00:01]} 27. Kf2 {[%emt 0:00:09]} Be6 {[%emt 0:00:07]} 28. g4 {[%emt 0:00:27]} Bd7 {[%emt 0:00:36]} 29. h4 {[%emt 0:00:42]} Be6 {[%emt 0:01:18]} 30. Bd2 {[%emt 0:00:48]} Kf7 {[%emt 0:00:31]} 31. Bf4 {[%emt 0:00:09]} c6 {[%emt 0:01:37]} 32. Be3 {[%emt 0:00:08]} a6 {[%emt 0:00:52]} 33. c3 {[%emt 0:00:26]} g5 {[%emt 0:01:27]} 34. hxg5 {[%emt 0:00:10]} hxg5 {[%emt 0:00:07]} 35. Kg3 {[%emt 0:00:04]} Bb3 {[%emt 0:00:15]} 36. Bb6 {[%emt 0:00:04]} Bd1 {[%emt 0:00:12]} 37. Bd8 {[%emt 0:00:04]} Ke6 {[%emt 0:00:10]} 38. f4 {[%emt 0:00:05]} gxf4+ {[%emt 0:00:12]} 39. Kxf4 {[%emt 0:00:06]} Be2 {[%emt 0:00:34]} 40. g5 {[%emt 0:00:05]} fxg5+ {[%emt 0:00:06]} 41. Bxg5 {[%emt 0:00:04]} Kd5 {[%emt 0:00:15]} 42. Ke3 {[%emt 0:00:03]} Bh5 {[%emt 0:00:07]} 43. Kd2 {[%emt 0:00:03]} Kc4 {[%emt 0:00:15]} 44. Kc1 {[%emt 0:00:04]} Bg6 {[%emt 0:00:11]} 45. Bf6 {[%emt 0:00:07]} Kb3 {[%emt 0:00:06]} 46. Be7 {[%emt 0:00:05]} Bh7 {[%emt 0:00:06]} 47. Bf8 {[%emt 0:00:06]} Bg6 {[%emt 0:00:05]} 48. Be7 {[%emt 0:00:06]} Bh7 {[%emt 0:00:03]} 49. Bf8 {[%emt 0:00:04]} Bg6 {[%emt 0:00:05]} 50. Be7 {[%emt 0:00:06]} 1/2-1/2

[Event "Spring Chess Classic A 2024"]
[Site "Saint Louis"]
[Date "2024.04.18"]
[Round "7.3"]
[White "Theodorou, Nikolas"]
[Black "Hakobyan, Aram"]
[Result "1/2-1/2"]
[ECO "C53"]
[WhiteElo "2622"]
[BlackElo "2619"]
[Annotator "TA"]
[PlyCount "105"]
[EventDate "2024.04.11"]
[EventCountry "USA"]
[SourceTitle "playchess.com"]
[Source "ChessBase"]
[SourceQuality "1"]
[TimeControl "7200+30"]

{[%evp 15,105,64,57,54,77,80,64,66,63,70,89,85,86,88,101,75,75,74,70,73,68,42,24,39,52,41,46,35,45,44,44,17,100,89,85,23,76,16,37,35,31,35,28,37,53,46,58,55,71,71,72,71,71,71,76,52,57,52,75,60,66,61,61,61,61,22,31,22,26,29,47,0,0,0,0,0,0,0,0,0,0,0,0,0,0,0,8,8,8,8,8,8]} 1. e4 {[%emt 0:00:13]} e5 {[%emt 0:00:49]} 2. Nf3 {[%emt 0:00:07]} Nc6 {[%emt 0:00:08]} 3. Bc4 {[%emt 0:00:05]} Bc5 {[%emt 0:00:24]} 4. c3 {[%emt 0:00:09]} d6 {[%emt 0:00:45]} 5. d4 {[%emt 0:15:34]} Bb6 {[%emt 0:00:20]} 6. dxe5 {[%emt 0:04:10]} Bg4 {[%emt 0:00:06] C53: Giuoco Piano sidelines.} 7. exd6 {[%emt 0:03:37]} Nf6 {[%emt 0:00:19]} 8. O-O {[%emt 0:04:49]} O-O {[%emt 0:00:07]} 9. Bg5 {[%emt 0:11:36]} h6 $146 {[%emt 0:00:31]} ({Predecessor:} 9... Bxf3 10. Qxf3 Qxd6 11. Bxf6 Qxf6 12. Qxf6 gxf6 13. Nd2 Rad8 14. Rad1 Rfe8 15. g3 Ne5 {1-0 Schaefer,A-Kiekhaefer,A Rangliste 1200-1500 19080 2015}) 10. Bh4 {[%emt 0:00:27]} g5 {[%emt 0:00:38]} 11. Bg3 {[%emt 0:00:13]} Nxe4 {[%emt 0:00:59]} 12. dxc7 {[%emt 0:01:12]} (12. Qc2 {with more complications.} Bf5 13. dxc7 Qc8 14. Bd3) 12... Qxd1 {[%emt 0:04:31]} 13. Rxd1 {[%emt 0:01:16]} Nxg3 {[%emt 0:00:04]} 14. hxg3 {[%emt 0:00:08]} Bxc7 {[%emt 0:00:30]} 15. Nbd2 {[%emt 0:02:13]} Rad8 {[%emt 0:03:38]} 16. Nf1 {[%emt 0:10:10]} Bb6 {[%emt 0:42:14]} 17. Bd5 {[%emt 0:06:12]} Rfe8 {[%emt 0:03:42]} 18. Bxc6 {[%emt 0:06:42]} Rxd1 {[%emt 0:04:11]} 19. Rxd1 {[%emt 0:00:07]} bxc6 {[%emt 0:00:04]} 20. Rd2 {[%emt 0:05:28]} Bxf3 {[%emt 0:13:48]} 21. gxf3 {[%emt 0:00:15]} h5 {[%emt 0:00:06]} 22. Kg2 {[%emt 0:06:24]} Re1 {[%emt 0:00:20]} 23. a4 {[%emt 0:06:35]} h4 {[%emt 0:05:31]} (23... a5 $11) 24. gxh4 {[%emt 0:06:21]} gxh4 {[%emt 0:00:01] [#]} 25. Nh2 {[%emt 0:00:09]} (25. Ne3 $1 $16) 25... Ra1 {[%emt 0:08:46]} (25... f5 $11 {remains equal.}) 26. b3 {[%emt 0:03:10]} (26. Ng4 $16) 26... Rb1 {[%emt 0:09:45]} 27. b4 {[%emt 0:01:53]} a5 {[%emt 0:00:23]} 28. bxa5 {[%emt 0:02:11]} Bxa5 {[%emt 0:00:11]} 29. Rd6 {[%emt 0:01:05]} Bxc3 {[%emt 0:13:30]} 30. Rxc6 {[%emt 0:00:44]} Bd4 {[%emt 0:02:01]} 31. Rc4 {[%emt 0:01:27]} h3+ {[%emt 0:00:43]} 32. Kg3 {[%emt 0:10:14]} Rg1+ {[%emt 0:01:27]} 33. Kxh3 {[%emt 0:00:09]} Bxf2 {[%emt 0:00:03] [#]} 34. Ng4 $1 {[%emt 0:07:01]} Ba7 {[%emt 0:00:31]} 35. Rc7 {[%emt 0:03:37]} Bb6 {[%emt 0:02:20]} 36. Rc6 {[%emt 0:02:04]} Rb1 {[%emt 0:02:48]} 37. Nf6+ {[%emt 0:07:54]} Kg7 {[%emt 0:00:14]} 38. Ne4 {[%emt 0:00:02]} Rb4 {[%emt 0:01:12]} 39. Nd6 {[%emt 0:00:03]} Ba5 {[%emt 0:01:25]} 40. Rc4 {[%emt 0:02:07]} Kf6 {[%emt 0:02:51]} 41. Ne4+ {[%emt 0:01:43]} Ke6 {[%emt 0:01:28]} 42. Rc6+ {[%emt 0:00:43]} Ke7 {[%emt 0:00:10]} 43. Nc3 {[%emt 0:00:53]} (43. Ra6 $14 Rxa4 44. Ra7+ Kf8 45. Nd6) 43... Rd4 $11 {[%emt 0:01:09]} 44. Nb5 {[%emt 0:00:43]} Rxa4 {[%emt 0:01:38]} 45. Ra6 {[%emt 0:00:02]} Ra1 {[%emt 0:00:13]} 46. Nd4 {[%emt 0:00:54]} Bc3 {[%emt 0:00:16]} 47. Nf5+ {[%emt 0:00:27]} Kd7 {[%emt 0:00:31]} 48. Rxa1 {[%emt 0:00:30]} Bxa1 {[%emt 0:00:08]} 49. Kg4 {[%emt 0:00:11]} Ke6 {[%emt 0:00:08]} 50. f4 {[%emt 0:00:06]} Be5 {[%emt 0:00:07]} 51. fxe5 {[%emt 0:00:15]} Kxe5 {[%emt 0:00:04]} 52. Ng3 {[%emt 0:00:11]} f5+ {[%emt 0:00:05]} 53. Nxf5 {[%emt 0:00:42]} 1/2-1/2

[Event "Spring Chess Classic A 2024"]
[Site "Saint Louis"]
[Date "2024.04.17"]
[Round "7.4"]
[White "Antipov, Mikhail Al."]
[Black "Mishra, Abhimanyu"]
[Result "1/2-1/2"]
[ECO "D39"]
[WhiteElo "2574"]
[BlackElo "2626"]
[Annotator "TA"]
[PlyCount "93"]
[EventDate "2024.04.11"]
[EventCountry "USA"]
[SourceTitle "playchess.com"]
[Source "ChessBase"]
[SourceQuality "1"]
[TimeControl "7200+30"]

{[%evp 20,93,20,2,17,-45,6,10,29,34,66,41,52,0,0,0,0,0,0,0,0,0,-6,0,0,-5,-5,-4,-6,-39,-47,-89,-75,-70,-80,-92,-80,-68,-75,-75,-15,-20,-21,-16,-8,-20,0,0,0,0,0,0,0,-8,-8,-8,-8,-8,-8,-8,-8,-8,-8,-8,-8,-8,-8,-8,0,0,0,0,8,8,8,8]} 1. d4 {[%emt 0:01:03]} Nf6 {[%emt 0:00:09]} 2. c4 {[%emt 0:00:05]} e6 {[%emt 0:00:08]} 3. Nf3 {[%emt 0:00:09]} d5 {[%emt 0:00:08]} 4. Nc3 {[%emt 0:00:08]} dxc4 {[%emt 0:00:09]} 5. e4 {[%emt 0:00:45]} Bb4 {[%emt 0:00:09]} 6. Bg5 {[%emt 0:00:33]} h6 {[%emt 0:00:16]} 7. Bxf6 {[%emt 0:00:11]} Qxf6 {[%emt 0:00:04]} 8. Bxc4 {[%emt 0:00:23]} c5 {[%emt 0:00:07]} 9. O-O {[%emt 0:00:20] D39: Queen's Gambit Declined: Ragozin Defence with 5 Bg5 dxc4.} cxd4 {[%emt 0:00:07]} 10. e5 $1 {[%emt 0:00:43] The main line 10.e5 scores better than 10.Nb5.} Qd8 {[%emt 0:00:08]} 11. Ne4 {[%emt 0:00:08]} O-O {[%emt 0:00:12]} 12. Nxd4 {[%emt 0:04:05]} (12. Qe2 $11) 12... Nd7 {[%emt 0:03:54]} (12... Qc7 $15 13. Qb3 Qxe5 14. Qxb4 Qxd4) 13. f4 $146 {[%emt 0:02:03]} ({Predecessor:} 13. Nf3 Nb6 14. Qb3 Qe7 15. a3 Ba5 16. Nd6 Bd7 17. Bb5 Rab8 18. Rfd1 Rfd8 19. Rd4 {0-1 Mohannad,F (2286)-Ghaem Maghami,E (2581) Dubai op 14th 2012 (7)}) 13... Qb6 {[%emt 0:03:12]} 14. Kh1 {[%emt 0:09:10]} Rd8 {[%emt 0:00:35]} 15. Nxe6 $1 {[%emt 0:03:24]} fxe6 {[%emt 0:01:16]} 16. Qg4 {[%emt 0:01:55]} ({White should play} 16. Qh5 $14) 16... Qd4 $11 {[%emt 0:24:54]} 17. Bxe6+ {[%emt 0:11:57]} Kh8 {[%emt 0:00:06]} 18. Ng5 {[%emt 0:20:27]} Nxe5 {[%emt 0:03:51]} ({Stronger than} 18... hxg5 19. Qh5#) 19. fxe5 {[%emt 0:08:49]} Qxg4 {[%emt 0:01:15]} ({Inferior is} 19... hxg5 20. Qh5#) 20. Nf7+ {[%emt 0:00:06]} Kg8 {[%emt 0:00:46]} 21. Bxg4 {[%emt 0:00:15]} Rd4 $1 {[%emt 0:01:18]} (21... Bxg4 $2 {is the wrong capture.} 22. Nxd8 Rxd8 23. Rf4 $18) 22. Bxc8 {[%emt 0:05:36]} Rxc8 {[%emt 0:00:07]} 23. a3 {[%emt 0:02:46]} Be7 {[%emt 0:02:28]} 24. e6 {[%emt 0:07:30]} Rc2 {[%emt 0:13:00]} 25. Rac1 {[%emt 0:07:13]} Rxc1 {[%emt 0:03:58]} 26. Rxc1 {[%emt 0:01:19]} Re4 {[%emt 0:00:09]} 27. Rc8+ {[%emt 0:04:29]} Bf8 {[%emt 0:00:40]} 28. Rc1 {[%emt 0:00:07]} Rxe6 {[%emt 0:03:44]} 29. Nd8 {[%emt 0:00:06]} Re7 {[%emt 0:02:19]} (29... Rb6 $17 30. b4 Ra6) 30. g3 $11 {[%emt 0:02:32]} g5 {[%emt 0:02:05]} 31. b4 {[%emt 0:06:12]} Kh7 {[%emt 0:06:06]} 32. Kg2 {[%emt 0:04:44]} h5 {[%emt 0:01:54]} 33. Rf1 {[%emt 0:02:28]} Bg7 {[%emt 0:03:41]} 34. Rf7 $1 {[%emt 0:02:15]} Rxf7 {[%emt 0:00:46]} 35. Nxf7 {[%emt 0:00:01]} Kg6 {[%emt 0:01:18]} 36. Nd8 {[%emt 0:02:49]} b5 {[%emt 0:00:58]} 37. Nc6 {[%emt 0:00:29]} a6 {[%emt 0:00:50]} 38. Nb8 {[%emt 0:00:16]} Bb2 {[%emt 0:00:32]} 39. Nxa6 {[%emt 0:00:05]} Bxa3 {[%emt 0:00:03]} 40. Nc7 {[%emt 0:00:20]} Bxb4 {[%emt 0:00:03]} 41. Nxb5 {[%emt 0:00:08]} g4 {[%emt 0:00:13]} 42. Nd4 {[%emt 0:00:11]} Be7 {[%emt 0:00:08]} 43. h3 {[%emt 0:00:15]} gxh3+ {[%emt 0:00:06]} 44. Kxh3 {[%emt 0:00:04]} Bd6 {[%emt 0:00:11]} 45. g4 {[%emt 0:00:05]} Bh2 {[%emt 0:00:08]} 46. gxh5+ $1 {[%emt 0:00:08]} Kxh5 {[%emt 0:00:06]} 47. Kxh2 {[%emt 0:00:02]} 1/2-1/2